fUSD/lending_fUSD_20250515
["ID","MTS","AMOUNT","RATE_DAILY","PERIOD"]
[361161632,1747312301620,-499.46,0.00015979,2]
[361161633,1747312301635,-400.0,0.00015979,2]
[361161634,1747312301644,-2191.97,0.00015979,2]
[361161635,1747312301654,-957.61,0.00015979,2]
[361161636,1747312301664,-722.35,0.00015979,2]
[361161637,1747312301674,-2080.12,0.00015979,2]
[361161638,1747312301684,-668.17,0.00015979,2]
[361161639,1747312301694,-400.0,0.00015979,2]
[361161640,1747312301704,-400.0,0.00015979,2]
[361161641,1747312301714,-216.43086852,0.00015979,2]
[361161642,1747312301724,-1597.82,0.00015979,2]
[361161643,1747312301734,-1630.72,0.00015979,2]
[361161644,1747312301744,-3843.82,0.00015979,2]
[361161645,1747312301753,-598.25,0.00015979,2]
[361161646,1747312301763,-1950.93,0.00015979,2]
[361161647,1747312301772,-457.12,0.00015979,2]
[361161648,1747312301783,-400.0,0.00015979,2]
[361161649,1747312301793,-922.32,0.00015979,2]
[361161650,1747312301985,-10611.15,0.00015979,2]
[361161651,1747312301995,-400.0,0.00015979,2]
[361161652,1747312302005,-400.0,0.00015979,2]
[361161653,1747312302015,-1108.85,0.00015979,2]
[361161654,1747312302024,-541.7,0.00015979,2]
[361161655,1747312302034,-501.52,0.00015979,2]
[361161656,1747312302043,-601.85,0.00015979,2]
[361161657,1747312302052,-589.76,0.00015979,2]
[361161658,1747312302062,-6735.81643624,0.00015979,2]
[361161659,1747312302284,-266.76625555,0.00015979,2]
[361161660,1747312334207,150.0,0.00012049,7]
[361161668,1747312507202,1557.01,0.00015,20]
[361161673,1747312628273,14159.917372,7.945e-05,2]
[361161679,1747312668366,531.39,8.969e-05,2]
[361161681,1747312904385,-500.0,0.00011015,3]
[361161687,1747312958522,272.22085915,0.0002,10]
[361161689,1747313127992,151.1,0.00021945,30]
[361161694,1747313313836,-177.02404935,0.00010919,2]
[361161695,1747313336827,-260.63275127,0.0001,2]
[361161697,1747313339318,-189.36724873,0.0001,2]
[361161698,1747313339342,-44.93997256,0.00010919,2]
[361161699,1747313343620,-252.8037597,0.00010919,2]
[361161700,1747313345075,-215.38126112,0.00010919,2]
[361161701,1747313346964,-261.67923195,0.00010919,2]
[361161702,1747313348358,-48.17172532,0.00010919,2]
[361161703,1747313348381,-154.268343,0.00010958,2]
[361161704,1747313348404,-67.69567891,0.00010998,2]
[361161705,1747313350813,-236.98106145,0.00010998,2]
[361161706,1747313353762,-321.77611231,0.00010998,2]
[361161707,1747313356272,-152.0,0.00010998,2]
[361161708,1747313358808,-156.81467106,0.00010998,2]
[361161709,1747313362845,-157.73247627,0.00010998,2]
[361161710,1747313362868,-139.41555318,0.00010998,2]
[361161711,1747313366115,-160.58444682,0.00010998,2]
[361161712,1747313366139,-15.49304763,0.00010999,2]
[361161713,1747313367540,-171.73453106,0.00010999,2]
[361161714,1747313369488,-189.26964301,0.00010999,2]
[361161715,1747313373424,-23.5027783,0.00010999,2]
[361161716,1747313373447,-155.34051422,0.00010999,2]
[361161717,1747313377065,-244.65948578,0.00010999,2]
[361161718,1747313377087,-32.8929571,0.00010999,2]
[361161719,1747313379444,-246.8723004,0.00010999,2]
[361161720,1747313383286,-120.2347425,0.00010999,2]
[361161721,1747313383311,-45.5852575,0.00010999,2]
[361161722,1747313384820,-220.73902034,0.00010999,2]
[361161723,1747313386783,-133.67572216,0.00010999,2]
[361161724,1747313386809,-89.28549051,0.00010999,2]
[361161725,1747313387589,150.0,0.00010895,7]
[361161726,1747313390404,-189.43476917,0.00010999,2]
[361161727,1747313391818,-121.27974032,0.00010999,2]
[361161728,1747313391842,-64.8784793,0.00010999,2]
[361161729,1747313394383,-183.30053064,0.00010999,2]
[361161730,1747313399732,-151.82099006,0.00010999,2]
[361161731,1747313399757,-12.23452821,0.00010999,2]
[361161733,1747313403037,-155.2473963,0.00010998,2]
[361161734,1747313405976,-231.4778354,0.00010998,2]
[361161735,1747313407915,-212.46002744,0.00010998,2]
[361161743,1747313432534,-44.81474086,0.00010998,2]
[361161744,1747313432547,-400.0,0.00010999,2]
[361161745,1747313432556,-400.0,0.00010999,2]
[361161746,1747313432565,-400.0,0.00010999,2]
[361161748,1747313432575,-400.0,0.00010999,2]
[361161750,1747313432585,-400.0,0.00010999,2]
[361161752,1747313432594,-400.0,0.00010999,2]
[361161754,1747313432603,-400.0,0.00010999,2]
[361161756,1747313432613,-400.0,0.00010999,2]
[361161758,1747313432622,-400.0,0.00010999,2]
[361161760,1747313432632,-400.0,0.00010999,2]
[361161762,1747313432641,-400.0,0.00010999,2]
[361161764,1747313432650,-400.0,0.00010999,2]
[361161766,1747313432659,-400.0,0.00010999,2]
[361161768,1747313432669,-400.0,0.00010999,2]
[361161770,1747313432678,-400.0,0.00010999,2]
[361161772,1747313432689,-400.0,0.00010999,2]
[361161774,1747313432698,-400.0,0.00010999,2]
[361161776,1747313432707,-400.0,0.00010999,2]
[361161777,1747313432717,-400.0,0.00010999,2]
[361161779,1747313432726,-400.0,0.00010999,2]
[361161781,1747313432735,-396.94838311,0.00010999,2]
[361161783,1747313432745,-400.0,0.00010999,2]
[361161785,1747313432754,-400.0,0.00010999,2]
[361161787,1747313432763,-400.0,0.00010999,2]
[361161789,1747313432772,-400.0,0.00010999,2]
[361161791,1747313432781,-400.0,0.00010999,2]
[361161793,1747313432792,-400.0,0.00010999,2]
[361161795,1747313432801,-400.0,0.00010999,2]
[361161797,1747313432812,-400.0,0.00010999,2]
[361161799,1747313432821,-400.0,0.00010999,2]
[361161801,1747313432831,-346.97467164,0.00010999,2]
[361161803,1747313432840,-400.0,0.00010999,2]
[361161805,1747313432850,-400.0,0.00010999,2]
[361161807,1747313432861,-400.0,0.00010999,2]
[361161809,1747313432870,-400.0,0.00010999,2]
[361161811,1747313432879,-415.30245002,0.00010999,2]
[361161813,1747313432890,-400.0,0.00010999,2]
[361161815,1747313432900,-434.05,0.00010999,2]
[361161817,1747313432909,-400.0,0.00010999,2]
[361161819,1747313432919,-400.0,0.00010999,2]
[361161821,1747313432928,-400.0,0.00011133,2]
[361161823,1747313432937,-400.0,0.00011133,2]
[361161825,1747313432947,-400.0,0.00011133,2]
[361161827,1747313432956,-400.0,0.00011133,2]
[361161829,1747313432965,-400.0,0.00011133,2]
[361161831,1747313432974,-400.0,0.00011133,2]
[361161833,1747313432983,-400.0,0.00011133,2]
[361161835,1747313432992,-400.0,0.00011133,2]
[361161837,1747313433002,-400.0,0.00011133,2]
[361161839,1747313433011,-400.0,0.00011133,2]
[361161841,1747313433021,-543.34,0.00011133,2]
[361161843,1747313433030,-400.0,0.00011133,2]
[361161845,1747313433042,-400.0,0.00011133,2]
[361161847,1747313433053,-858.58,0.00011133,2]
[361161849,1747313433063,-400.0,0.00011133,2]
[361161851,1747313433073,-400.0,0.00011133,2]
[361161853,1747313433083,-400.0,0.00011133,2]
[361161855,1747313433094,-400.0,0.00011133,2]
[361161856,1747313433104,-400.0,0.00011133,2]
[361161859,1747313433114,-400.0,0.00011133,2]
[361161861,1747313433124,-400.0,0.00011133,2]
[361161863,1747313433135,-400.0,0.00011133,2]
[361161865,1747313433144,-400.0,0.00011133,2]
[361161867,1747313433154,-457.1863,0.00011173,2]
[361161869,1747313433163,-531.39,0.00011233,2]
[361161870,1747313433173,-205.21950557,0.00011273,2]
[361161872,1747313433182,-400.0,0.00011273,2]
[361161874,1747313433191,-400.0,0.00011273,2]
[361161876,1747313433201,-400.0,0.00011273,2]
[361161878,1747313433211,-400.0,0.00011273,2]
[361161880,1747313433220,-400.0,0.00011273,2]
[361161882,1747313433230,-400.0,0.00011273,2]
[361161884,1747313433239,-400.0,0.00011273,2]
[361161886,1747313433249,-400.0,0.00011273,2]
[361161888,1747313433259,-400.0,0.00011273,2]
[361161890,1747313433269,-400.0,0.00011273,2]
[361161892,1747313433278,-400.0,0.00011273,2]
[361161894,1747313433288,-400.0,0.00011273,2]
[361161896,1747313433299,-400.0,0.00011273,2]
[361161898,1747313433309,-400.0,0.00011273,2]
[361161901,1747313433330,-400.0,0.00011273,2]
[361161903,1747313433340,-400.0,0.00011273,2]
[361161906,1747313433350,-400.0,0.00011273,2]
[361161908,1747313433360,-400.0,0.00011273,2]
[361161910,1747313433370,-400.0,0.00011273,2]
[361161912,1747313433380,-400.0,0.00011273,2]
[361161914,1747313433390,-400.0,0.00011273,2]
[361161916,1747313433401,-400.0,0.00011273,2]
[361161918,1747313433411,-400.0,0.00011273,2]
[361161920,1747313433420,-400.0,0.00011273,2]
[361161922,1747313433430,-400.0,0.00011273,2]
[361161924,1747313433440,-400.0,0.00011273,2]
[361161926,1747313433450,-424.76,0.00011273,2]
[361161928,1747313433459,-400.0,0.00011273,2]
[361161930,1747313433470,-400.0,0.00011273,2]
[361161932,1747313433480,-434.05,0.00011273,2]
[361161934,1747313433490,-178.76299906,0.00011273,2]
[361161936,1747313433499,-400.0,0.00011407,2]
[361161938,1747313433509,-400.0,0.00011407,2]
[361161940,1747313433520,-400.0,0.00011407,2]
[361161942,1747313433530,-400.0,0.00011407,2]
[361161944,1747313433540,-400.0,0.00011407,2]
[361161946,1747313433552,-321.19,0.00011407,2]
[361161948,1747313433562,-400.0,0.00011407,2]
[361161950,1747313433572,-400.0,0.00011407,2]
[361161952,1747313433582,-400.0,0.00011407,2]
[361161954,1747313433592,-858.58,0.00011407,2]
[361161956,1747313433602,-400.0,0.00011407,2]
[361161958,1747313433612,-400.0,0.00011407,2]
[361161960,1747313433622,-209.78096657,0.00011407,2]
[361161961,1747313433632,-176.0775,0.00011446,2]
[361161963,1747313433642,-207.4,0.00011539,2]
[361161965,1747313433653,-400.0,0.00011546,2]
[361161966,1747313433662,-400.0,0.00011546,2]
[361161967,1747313433674,-400.0,0.00011546,2]
[361161968,1747313433684,-2015.82,0.00011546,2]
[361161969,1747313433694,-400.0,0.00011546,2]
[361161970,1747313433704,-400.0,0.00011546,2]
[361161971,1747313433714,-400.0,0.00011546,2]
[361161972,1747313433723,-400.0,0.00011546,2]
[361161973,1747313433733,-400.0,0.00011546,2]
[361161974,1747313433743,-400.0,0.00011546,2]
[361161975,1747313433753,-400.0,0.00011546,2]
[361161976,1747313433763,-400.0,0.00011546,2]
[361161977,1747313433773,-400.0,0.00011546,2]
[361161978,1747313433782,-400.0,0.00011546,2]
[361161979,1747313433792,-400.0,0.00011546,2]
[361161980,1747313433802,-421.35088132,0.00011546,2]
[361161981,1747313433815,-400.0,0.00011546,2]
[361161982,1747313433825,-400.0,0.00011546,2]
[361161983,1747313433835,-400.0,0.00011546,2]
[361161984,1747313433845,-400.0,0.00011546,2]
[361161985,1747313433857,-400.0,0.00011546,2]
[361161986,1747313433867,-400.0,0.00011546,2]
[361161987,1747313433877,-400.0,0.00011546,2]
[361161988,1747313433889,-400.0,0.00011546,2]
[361161989,1747313433899,-400.0,0.00011546,2]
[361161990,1747313433908,-400.0,0.00011546,2]
[361161991,1747313433918,-400.0,0.00011546,2]
[361161992,1747313433928,-400.0,0.00011546,2]
[361161993,1747313433937,-400.0,0.00011546,2]
[361161994,1747313433947,-400.0,0.00011546,2]
[361161995,1747313433957,-400.0,0.00011546,2]
[361161996,1747313433967,-400.0,0.00011546,2]
[361161997,1747313433977,-400.0,0.00011546,2]
[361161998,1747313433986,-400.0,0.00011546,2]
[361161999,1747313433996,-400.0,0.00011546,2]
[361162000,1747313434006,-400.0,0.00011546,2]
[361162001,1747313434015,-400.0,0.00011546,2]
[361162002,1747313434029,-400.0,0.00011546,2]
[361162003,1747313434039,-402.27445659,0.00011546,2]
[361162004,1747313434050,-393.52720715,0.00011546,2]
[361162005,1747313434060,-454.22874244,0.00011546,2]
[361162006,1747313434070,-400.0,0.00011546,2]
[361162007,1747313434080,-400.0,0.00011546,2]
[361162008,1747313434090,-400.0,0.00011546,2]
[361162009,1747313434100,-400.0,0.00011546,2]
[361162010,1747313434110,-400.0,0.00011546,2]
[361162011,1747313434121,-400.0,0.00011546,2]
[361162012,1747313434131,-270.63085516,0.00011546,2]
[361162013,1747313434142,-406.34566517,0.00011546,2]
[361162014,1747313434151,-400.0,0.00011546,2]
[361162015,1747313434163,-400.0,0.00011546,2]
[361162016,1747313434174,-400.0,0.00011546,2]
[361162017,1747313434184,-400.0,0.00011546,2]
[361162018,1747313434194,-400.0,0.00011546,2]
[361162019,1747313434204,-400.0,0.00011546,2]
[361162020,1747313434214,-500.0,0.00011546,2]
[361162021,1747313434224,-400.0,0.00011546,2]
[361162022,1747313434234,-299.86539993,0.00011546,2]
[361162023,1747313434245,-400.0,0.00011546,2]
[361162024,1747313434255,-161.53731294,0.00011546,2]
[361162025,1747313434265,-400.0,0.00011546,2]
[361162026,1747313434275,-400.0,0.00011546,2]
[361162027,1747313434285,-394.30809356,0.00011546,2]
[361162028,1747313434296,-250.0,0.00011546,2]
[361162029,1747313434307,-401.89046241,0.00011546,2]
[361162030,1747313434317,-400.0,0.00011546,2]
[361162031,1747313434327,-400.0,0.00011546,2]
[361162032,1747313434337,-406.03965731,0.00011546,2]
[361162033,1747313434347,-400.0,0.00011546,2]
[361162034,1747313434358,-400.0,0.00011546,2]
[361162035,1747313434368,-1465.84,0.00011546,2]
[361162036,1747313434378,-400.0,0.00011546,2]
[361162037,1747313434388,-400.0,0.00011546,2]
[361162038,1747313434398,-400.0,0.00011546,2]
[361162039,1747313434408,-400.0,0.00011546,2]
[361162040,1747313434417,-400.0,0.00011546,2]
[361162041,1747313434428,-410.16138489,0.00011546,2]
[361162042,1747313434438,-400.0,0.00011546,2]
[361162043,1747313434449,-400.0,0.00011546,2]
[361162044,1747313434460,-400.0,0.00011546,2]
[361162045,1747313434470,-868.58,0.00011546,2]
[361162046,1747313434480,-400.0,0.00011546,2]
[361162048,1747313434490,-407.73374354,0.00011546,2]
[361162049,1747313434500,-400.0,0.00011546,2]
[361162051,1747313434510,-401.70968781,0.00011546,2]
[361162053,1747313434520,-400.0,0.00011546,2]
[361162055,1747313434530,-400.0,0.00011546,2]
[361162057,1747313434540,-301.89195203,0.00011546,2]
[361162059,1747313434551,-403.55801823,0.00011546,2]
[361162061,1747313434561,-400.0,0.00011546,2]
[361162063,1747313434570,-400.0,0.00011546,2]
[361162066,1747313434580,-400.0,0.00011546,2]
[361162069,1747313434590,-400.0,0.00011546,2]
[361162072,1747313434599,-400.0,0.00011546,2]
[361162075,1747313434608,-407.04429908,0.00011546,2]
[361162078,1747313434618,-488.04513451,0.00011546,2]
[361162081,1747313434627,-400.0,0.00011546,2]
[361162084,1747313434637,-400.0,0.00011546,2]
[361162087,1747313434647,-400.0,0.00011546,2]
[361162090,1747313434656,-400.0,0.00011546,2]
[361162092,1747313434666,-400.0,0.00011546,2]
[361162094,1747313434676,-400.0,0.00011546,2]
[361162096,1747313434688,-400.0,0.00011546,2]
[361162098,1747313434698,-542.97,0.00011546,2]
[361162100,1747313434708,-400.0,0.00011546,2]
[361162102,1747313434718,-400.0,0.00011546,2]
[361162104,1747313434728,-400.0,0.00011546,2]
[361162106,1747313434738,-369.6281485,0.00011546,2]
[361162108,1747313434747,-296.27861188,0.00011546,2]
[361162110,1747313434757,-400.0,0.00011546,2]
[361162112,1747313434767,-400.0,0.00011546,2]
[361162114,1747313434777,-400.0,0.00011546,2]
[361162116,1747313434786,-400.0,0.00011546,2]
[361162117,1747313434799,-400.0,0.00011546,2]
[361162119,1747313434809,-691.58,0.00011546,2]
[361162121,1747313434824,-400.0,0.00011546,2]
[361162123,1747313434834,-400.0,0.00011546,2]
[361162125,1747313434843,-400.0,0.00011546,2]
[361162128,1747313434853,-400.0,0.00011546,2]
[361162130,1747313434864,-400.0,0.00011546,2]
[361162132,1747313434873,-400.0,0.00011546,2]
[361162133,1747313434883,-400.0,0.00011546,2]
[361162136,1747313434894,-416.47825092,0.00011546,2]
[361162137,1747313434904,-400.0,0.00011546,2]
[361162140,1747313434913,-400.0,0.00011546,2]
[361162142,1747313434923,-1067.32,0.00011546,2]
[361162144,1747313434933,-400.0,0.00011546,2]
[361162146,1747313434942,-403.51927456,0.00011546,2]
[361162147,1747313434951,-400.0,0.00011546,2]
[361162149,1747313434961,-400.0,0.00011546,2]
[361162152,1747313434971,-400.0,0.00011546,2]
[361162154,1747313434980,-406.38249444,0.00011546,2]
[361162155,1747313434990,-400.0,0.00011546,2]
[361162157,1747313434999,-400.0,0.00011546,2]
[361162159,1747313435008,-410.47828682,0.00011546,2]
[361162161,1747313435018,-639.33,0.00011546,2]
[361162164,1747313435028,-400.0,0.00011546,2]
[361162166,1747313435040,-400.0,0.00011546,2]
[361162168,1747313435052,-400.0,0.00011546,2]
[361162170,1747313435061,-400.0,0.00011546,2]
[361162172,1747313435071,-1162.15,0.00011546,2]
[361162174,1747313435081,-400.0,0.00011546,2]
[361162176,1747313435090,-402.21384946,0.00011546,2]
[361162178,1747313435100,-400.0,0.00011546,2]
[361162180,1747313435110,-400.0,0.00011546,2]
[361162182,1747313435120,-400.92055231,0.00011546,2]
[361162184,1747313435129,-400.0,0.00011546,2]
[361162186,1747313435139,-400.0,0.00011546,2]
[361162188,1747313435148,-400.0,0.00011546,2]
[361162190,1747313435158,-400.0,0.00011546,2]
[361162192,1747313435167,-162.31409209,0.00011546,2]
[361162194,1747313435177,-400.0,0.00011546,2]
[361162196,1747313435186,-439.88,0.00011546,2]
[361162198,1747313435195,-400.0,0.00011546,2]
[361162200,1747313435205,-400.0,0.00011546,2]
[361162202,1747313435214,-403.49563722,0.00011546,2]
[361162204,1747313435224,-400.0,0.00011546,2]
[361162206,1747313435233,-400.0,0.00011546,2]
[361162208,1747313435242,-400.0,0.00011546,2]
[361162210,1747313435251,-400.0,0.00011546,2]
[361162212,1747313435260,-400.0,0.00011546,2]
[361162214,1747313435271,-400.0,0.00011546,2]
[361162216,1747313435280,-400.0,0.00011546,2]
[361162218,1747313435289,-430.27,0.00011546,2]
[361162220,1747313435301,-400.0,0.00011546,2]
[361162222,1747313435310,-403.64527996,0.00011546,2]
[361162224,1747313435319,-409.92750709,0.00011546,2]
[361162226,1747313435329,-400.0,0.00011546,2]
[361162228,1747313435338,-400.0,0.00011546,2]
[361162230,1747313435348,-400.15495804,0.00011546,2]
[361162232,1747313435357,-400.0,0.00011546,2]
[361162233,1747313435366,-673.57,0.00011546,2]
[361162235,1747313435375,-400.0,0.00011546,2]
[361162237,1747313435385,-444.6378871,0.00011546,2]
[361162239,1747313435394,-404.71786927,0.00011546,2]
[361162241,1747313435404,-408.95058601,0.00011546,2]
[361162243,1747313435413,-400.0,0.00011546,2]
[361162245,1747313435423,-411.52744019,0.00011546,2]
[361162247,1747313435432,-400.0,0.00011546,2]
[361162249,1747313435441,-400.0,0.00011546,2]
[361162251,1747313435451,-352.90312625,0.00011546,2]
[361162253,1747313435460,-401.23322603,0.00011546,2]
[361162255,1747313435470,-400.0,0.00011546,2]
[361162257,1747313435479,-569.02,0.00011546,2]
[361162259,1747313435489,-400.0,0.00011546,2]
[361162261,1747313435498,-400.0,0.00011546,2]
[361162263,1747313435507,-400.0,0.00011546,2]
[361162265,1747313435516,-593.6,0.00011546,2]
[361162267,1747313435526,-400.0,0.00011546,2]
[361162269,1747313435537,-606.7,0.00011546,2]
[361162271,1747313435547,-400.0,0.00011546,2]
[361162273,1747313435556,-400.0,0.00011546,2]
[361162275,1747313435566,-400.0,0.00011546,2]
[361162277,1747313435575,-400.0,0.00011546,2]
[361162279,1747313435585,-400.0,0.00011546,2]
[361162281,1747313435594,-400.0,0.00011546,2]
[361162283,1747313435603,-400.0,0.00011546,2]
[361162285,1747313435612,-400.0,0.00011546,2]
[361162287,1747313435621,-400.0,0.00011546,2]
[361162289,1747313435631,-755.68,0.00011546,2]
[361162290,1747313435640,-400.0,0.00011546,2]
[361162291,1747313435649,-400.0,0.00011546,2]
[361162292,1747313435657,-400.0,0.00011546,2]
[361162293,1747313435666,-475.62,0.00011546,2]
[361162294,1747313435676,-1121.11,0.00011546,2]
[361162295,1747313435685,-400.0,0.00011546,2]
[361162296,1747313435694,-400.0,0.00011546,2]
[361162297,1747313435703,-400.0,0.00011546,2]
[361162298,1747313435712,-400.0,0.00011546,2]
[361162299,1747313435721,-400.0,0.00011546,2]
[361162300,1747313435730,-515.82,0.00011546,2]
[361162301,1747313435740,-400.0,0.00011546,2]
[361162302,1747313435749,-400.0,0.00011546,2]
[361162303,1747313435758,-400.0,0.00011546,2]
[361162304,1747313435767,-2413.06,0.00011546,2]
[361162305,1747313435777,-1083.64,0.00011546,2]
[361162306,1747313435786,-1057.41,0.00011546,2]
[361162308,1747313435796,-400.0,0.00011546,2]
[361162310,1747313435806,-5427.01,0.00011546,2]
[361162312,1747313435818,-400.0,0.00011546,2]
[361162314,1747313435828,-400.0,0.00011546,2]
[361162316,1747313435841,-549.19,0.00011546,2]
[361162318,1747313435851,-400.0,0.00011546,2]
[361162320,1747313435860,-400.0,0.00011546,2]
[361162322,1747313435870,-400.0,0.00011546,2]
[361162324,1747313435879,-400.0,0.00011546,2]
[361162326,1747313435891,-400.0,0.00011546,2]
[361162328,1747313435901,-400.0,0.00011546,2]
[361162330,1747313435910,-400.0,0.00011546,2]
[361162332,1747313435920,-19090.25,0.00011546,2]
[361162334,1747313435929,-400.0,0.00011546,2]
[361162336,1747313435938,-400.0,0.00011546,2]
[361162338,1747313435948,-400.0,0.00011546,2]
[361162340,1747313435957,-400.0,0.00011546,2]
[361162342,1747313435966,-400.0,0.00011546,2]
[361162343,1747313435975,-184.36808751,0.00011546,2]
[361162344,1747313435985,-424.62,0.00011546,2]
[361162345,1747313435994,-400.0,0.00011546,2]
[361162346,1747313436004,-400.0,0.00011546,2]
[361162347,1747313436013,-400.0,0.00011546,2]
[361162348,1747313436022,-400.0,0.00011547,2]
[361162349,1747313436031,-400.0,0.00011547,2]
[361162350,1747313436041,-400.0,0.00011547,2]
[361162351,1747313436051,-477.2307085,0.00011547,2]
[361162352,1747313436061,-400.0,0.00011547,2]
[361162353,1747313436070,-400.0,0.00011547,2]
[361162354,1747313436081,-400.0,0.00011547,2]
[361162355,1747313436091,-400.0,0.00011547,2]
[361162356,1747313436101,-400.0,0.00011547,2]
[361162357,1747313436111,-400.0,0.00011547,2]
[361162358,1747313436120,-400.0,0.00011547,2]
[361162359,1747313436130,-400.0,0.00011547,2]
[361162360,1747313436139,-400.0,0.00011547,2]
[361162361,1747313436149,-400.0,0.00011547,2]
[361162362,1747313436159,-400.0,0.00011547,2]
[361162363,1747313436169,-400.0,0.00011547,2]
[361162364,1747313436179,-400.0,0.00011547,2]
[361162365,1747313436189,-400.0,0.00011547,2]
[361162366,1747313436200,-400.0,0.00011547,2]
[361162367,1747313436210,-400.0,0.00011547,2]
[361162368,1747313436219,-400.0,0.00011547,2]
[361162369,1747313436229,-389.75,0.00011547,2]
[361162370,1747313436239,-400.0,0.00011547,2]
[361162371,1747313436248,-400.0,0.00011547,2]
[361162372,1747313436258,-400.0,0.00011547,2]
[361162373,1747313436267,-400.0,0.00011547,2]
[361162374,1747313436277,-400.0,0.00011547,2]
[361162375,1747313436286,-400.0,0.00011547,2]
[361162376,1747313436298,-434.05,0.00011547,2]
[361162377,1747313436308,-500.0,0.00011573,2]
[361162378,1747313436318,-151.0,0.00011596,2]
[361162379,1747313436328,-400.0,0.0001168,2]
[361162380,1747313436339,-400.0,0.0001168,2]
[361162381,1747313436349,-405.92855126,0.0001168,2]
[361162382,1747313436359,-543.13647629,0.0001168,2]
[361162383,1747313436369,-400.0,0.0001168,2]
[361162384,1747313436378,-400.0,0.0001168,2]
[361162385,1747313436388,-400.0,0.0001168,2]
[361162386,1747313436397,-400.0,0.0001168,2]
[361162387,1747313436407,-400.0,0.0001168,2]
[361162388,1747313436417,-400.0,0.0001168,2]
[361162389,1747313436427,-400.0,0.0001168,2]
[361162390,1747313436439,-400.0,0.0001168,2]
[361162391,1747313436450,-400.0,0.0001168,2]
[361162392,1747313436460,-400.0,0.0001168,2]
[361162393,1747313436470,-400.0,0.0001168,2]
[361162394,1747313436480,-400.0,0.0001168,2]
[361162395,1747313436489,-400.0,0.0001168,2]
[361162396,1747313436499,-400.0,0.0001168,2]
[361162397,1747313436509,-400.0,0.0001168,2]
[361162398,1747313436519,-400.0,0.0001168,2]
[361162399,1747313436529,-400.0,0.0001168,2]
[361162400,1747313436538,-400.0,0.0001168,2]
[361162401,1747313436553,-400.0,0.0001168,2]
[361162402,1747313436562,-400.0,0.0001168,2]
[361162403,1747313436778,-400.0,0.0001168,2]
[361162404,1747313436788,-400.0,0.0001168,2]
[361162405,1747313436800,-400.0,0.0001168,2]
[361162406,1747313436810,-400.0,0.0001168,2]
[361162407,1747313436822,-400.0,0.0001168,2]
[361162408,1747313436832,-400.0,0.0001168,2]
[361162409,1747313436841,-400.0,0.0001168,2]
[361162410,1747313436851,-479.2,0.0001168,2]
[361162411,1747313436861,-400.0,0.0001168,2]
[361162412,1747313436870,-400.0,0.0001168,2]
[361162413,1747313436879,-400.0,0.0001168,2]
[361162414,1747313436889,-675.32,0.0001168,2]
[361162415,1747313436901,-400.0,0.0001168,2]
[361162416,1747313436913,-400.0,0.0001168,2]
[361162417,1747313436922,-502.91240176,0.00011681,2]
[361162418,1747313436931,-400.0,0.00011681,2]
[361162419,1747313436941,-400.0,0.00011681,2]